bitfinex-derivatives/quotes_ETHF0:USTF0_20241027
["timestamp","ask_amount","ask_price","bid_price","bid_amount"]
[1729991368077,1.31039136,2475.4,2475.3,1.31039136]
[1729991368280,1.31039136,2475.4,2475.3,1.71484136]
[1729991368677,1.31039136,2475.4,2475.1,1.2646]
[1729991368678,1.31039136,2475.4,2475.2,1.31039136]
[1729991368876,1.31039136,2475.4,2475.3,0.40445]
[1729991369980,1.31039136,2475.4,2475.3,1.71484136]
[1729991374986,1.31039136,2475.4,2475.2,0.40446]
[1729991375284,0.40442,2475.5,2475.2,0.40446]
[1729991375285,1.31039136,2475.3,2475.2,0.40446]
[1729991376789,1.31039136,2475.3,2475.1,1.2646]
[1729991377088,1.31039136,2475.2,2475.1,1.66908]
[1729991380579,0.40449,2475.1,2474.8,0.40452]
[1729991380794,1.31039136,2474.9,2474.8,1.24113]
[1729991382295,1.31039136,2474.9,2474.8,0.8366]
[1729991382494,1.31039136,2474.9,2474.8,1.24113]
[1729991382691,1.31039136,2474.9,2474.8,0.8366]
[1729991382989,1.31039136,2474.9,2474.7,0.40454]
[1729991383192,2.04269,2475.1,2474.8,0.82023]
[1729991383491,0.4045,2475.0,2474.8,0.82023]
[1729991383894,1.6382,2475.1,2474.8,0.82023]
[1729991384093,1.31039136,2474.9,2474.8,0.82023]
[1729991401401,1.71491136,2474.9,2474.7,0.4131]
[1729991401605,1.31039136,2474.8,2474.5,1.06094961]
[1729991401808,1.31039136,2474.6,2474.5,1.46552961]
[1729991402109,2.13139136,2474.6,2474.5,1.46552961]
[1729991403710,2.53596136,2474.6,2474.5,1.06094961]
[1729991403910,9.78456136,2474.6,2474.5,1.06094961]
[1729991404120,0.40458,2474.5,2474.4,1.59081193]
[1729991404311,7.06696272,2474.5,2474.4,1.59081193]
[1729991404510,11.32124836,2474.5,2474.2,2.12108257]
[1729991404716,6.23319272,2474.3,2474.2,2.12108257]
[1729991405214,10.27479272,2474.3,2474.2,2.12108257]
[1729991405515,7.65401,2474.3,2474.2,2.12108257]
[1729991405708,11.09579272,2474.3,2474.2,2.12108257]
[1729991405905,7.2494,2474.3,2474.2,2.12108257]
[1729991406208,9.38079136,2474.3,2474.2,2.52571257]
[1729991406608,10.69118272,2474.3,2474.2,2.12108257]
[1729991406807,9.38079136,2474.3,2474.2,2.52571257]
[1729991407316,10.69118272,2474.3,2474.2,0.40463]
[1729991409508,10.69118272,2474.3,2473.8,0.4393]
[1729991409703,1.31039136,2473.9,2473.8,0.4393]
[1729991409903,1.31039136,2473.9,2473.8,0.844]
[1729991429623,1.31039136,2473.9,2473.8,0.4047]
[1729991429824,1.31039136,2473.9,2473.8,0.8326]
[1729991447440,1.31039136,2473.9,2473.8,2.99831715]
[1729991448637,1.31039136,2473.9,2473.8,2.9989558]
[1729991448834,1.31039136,2473.9,2473.8,2.99896785]
[1729991449246,1.31039136,2473.9,2473.8,6.63858029]
[1729991449247,2.13839136,2473.9,2473.8,6.63858029]
[1729991451749,2.13839136,2473.9,2473.8,9.70843301]
[1729991452250,2.13839136,2473.9,2473.8,6.63858029]
[1729991456248,2.13839136,2473.9,2473.8,4.51749772]
[1729991458643,2.13839136,2473.9,2473.8,4.51876012]
[1729991462949,2.13839136,2473.9,2473.8,4.51874278]
[1729991463949,2.13839136,2473.9,2473.8,6.63982535]
[1729991465550,0.834,2473.9,2473.8,6.63982535]
[1729991465748,0.834,2473.9,2473.8,9.72778549]
[1729991465963,0.834,2473.9,2473.8,9.73676172]
[1729991465964,2.14439136,2473.9,2473.8,9.73676172]
[1729991466465,2.14439136,2473.9,2473.8,9.73672187]
[1729991466761,2.14439136,2473.9,2473.8,7.6156393]
[1729991467058,2.14439136,2473.9,2473.8,9.74078389]
[1729991468556,1.31039136,2473.9,2473.8,9.74078389]
[1729991468764,1.31039136,2473.9,2473.8,7.6156393]
[1729991469059,1.31039136,2473.9,2473.8,7.61554806]
[1729991469985,1.31039136,2473.9,2473.8,5.97058744]
[1729991470156,1.31039136,2473.9,2473.8,7.61556971]
[1729991470654,1.31039136,2473.9,2473.8,4.52761309]
[1729991470857,1.31039136,2473.9,2473.8,7.61539128]
[1729991473859,1.31039136,2473.9,2473.8,9.74024476]
[1729991475366,1.31039136,2473.9,2473.8,9.73985506]
[1729991478970,1.31039136,2473.9,2473.8,7.61499387]
[1729991479266,1.31039136,2473.9,2473.8,9.73972322]
[1729991481380,1.31039136,2473.9,2473.8,9.23358411]
[1729991481570,1.31039136,2473.9,2473.8,9.73972709]
[1729991484266,0.834,2474.0,2473.9,0.40468]
[1729991484467,2.14439136,2474.0,2473.9,4.09955935]
[1729991484773,2.14439136,2474.0,2473.9,4.09966071]
[1729991484959,2.14439136,2474.0,2473.9,4.0996475]
[1729991485269,2.14439136,2474.0,2473.9,3.59350478]
[1729991485468,2.14439136,2474.0,2473.9,4.09964762]
[1729991486973,2.14439136,2474.0,2473.9,3.08736194]
[1729991488876,2.14439136,2474.0,2473.9,2.45468339]
[1729991489078,2.14439136,2474.0,2473.9,2.58122945]
[1729991489272,2.14439136,2474.0,2473.9,1.94854055]
[1729991489469,2.14439136,2474.0,2473.9,1.94854996]
[1729991489980,2.14439136,2474.0,2473.9,2.45470108]
[1729991490175,2.14439136,2474.0,2473.9,3.08739015]
[1729991490380,2.14439136,2474.0,2473.9,3.08738842]
[1729991490684,3.2078,2474.3,2473.9,9.86210827]
[1729991490879,3.2078,2474.3,2474.2,0.40463]
[1729991491080,4.51819136,2474.3,2474.2,0.40463]
[1729991491272,4.51819136,2474.3,2474.2,0.83983]
[1729991491879,1.31039136,2474.3,2474.2,0.83983]
[1729991498791,3.2078,2474.6,2474.5,0.40458]
[1729991498990,5.34419136,2474.6,2474.5,0.40458]
[1729991499184,4.51819136,2474.6,2474.5,0.40458]
[1729991499381,5.34419136,2474.6,2474.5,0.40458]
[1729991501685,2.13639136,2474.6,2474.5,0.40458]
[1729991501885,5.34419136,2474.6,2474.5,0.40458]
[1729991503287,5.74876136,2474.6,2474.5,0.40458]
[1729991504088,2.54096136,2474.6,2474.5,0.40458]
[1729991504689,2.54096136,2474.6,2474.3,0.8672]
[1729991504882,1.31039136,2474.4,2474.3,1.27181]
[1729991521607,5.75659136,2474.4,2474.3,0.4343]
[1729991521807,0.40461,2474.3,2474.2,0.4352]
[1729991522006,1.71500136,2474.3,2474.2,0.4352]
[1729991522710,1.31039136,2474.3,2474.2,0.4352]
[1729991523811,1.71500136,2474.3,2474.2,0.4352]
[1729991524213,1.71500136,2474.3,2474.2,1.4962598]
[1729991524711,1.31039136,2474.3,2474.2,1.4962598]
[1729991524907,1.31039136,2474.3,2474.2,0.4352]
[1729991525413,1.31039136,2474.3,2474.2,1.4962598]
[1729991525813,1.71500136,2474.3,2474.2,1.4962598]
[1729991526011,1.71500136,2474.3,2474.2,0.4352]
[1729991526331,1.71500136,2474.3,2474.2,1.4962598]
[1729991526708,1.31039136,2474.3,2474.2,1.4962598]
[1729991529718,2.13239136,2474.3,2474.2,1.4962598]
[1729991529920,2.13239136,2474.3,2474.2,1.9008898]
[1729991530417,2.53700136,2474.3,2474.2,0.4352]
[1729991530923,2.13239136,2474.3,2474.2,0.4352]
[1729991531215,2.13239136,2474.3,2474.2,0.83983]
[1729991532419,2.13239136,2474.3,2474.2,1.47244863]
[1729991533419,2.13239136,2474.3,2474.2,0.83983]
[1729991533921,2.13239136,2474.3,2474.2,0.4352]
[1729991534110,7.48438272,2474.3,2474.1,0.8713]
[1729991534418,1.71502136,2474.2,2474.1,0.4367]
[1729991534613,5.75662136,2474.2,2474.1,0.4367]
[1729991536927,5.35199136,2474.2,2474.1,0.84135]
[1729991537421,1.31039136,2474.2,2474.1,0.84135]
[1729991537616,2.13239136,2474.2,2474.1,1.4977598]
[1729991537849,7.48438272,2474.2,2474.1,1.27445]
[1729991538722,7.88901272,2474.2,2474.1,0.8698]
[1729991539123,0.40465,2474.1,2474.0,1.0610598]
[1729991539424,1.31039136,2474.1,2474.0,0.40466]
[1729991539630,5.35199136,2474.1,2474.0,0.40466]
[1729991541322,5.35199136,2474.1,2473.9,1.8822298]
[1729991541529,1.31039136,2474.0,2473.9,1.8822298]
[1729991541718,1.31039136,2474.0,2473.9,3.42495607]
[1729991542522,1.31039136,2474.0,2473.9,0.82117]
[1729991548427,5.35279136,2474.0,2473.8,0.8323]
[1729991548729,4.0424,2473.9,2473.0,1.0610598]
[1729991549032,1.71515136,2473.5,2473.4,0.4182]
[1729991549232,2.53715136,2473.5,2473.4,0.4182]
[1729991549432,0.40476,2473.4,2473.3,0.4384]
[1729991549730,5.35359136,2473.4,2473.3,0.4384]
[1729991549928,5.35359136,2473.4,2473.3,0.8566]
[1729991550350,6.17559136,2473.4,2473.3,1.26138]
[1729991550618,2.13239136,2473.4,2473.3,1.26138]
[1729991550824,1.31039136,2473.4,2473.3,1.26138]
[1729991551023,2.13239136,2473.4,2473.3,1.26138]
[1729991552628,3.2078,2473.6,2473.3,0.8566]
[1729991552833,3.2078,2473.6,2473.5,0.40475]
[1729991553032,5.34019136,2473.6,2473.5,0.40475]
[1729991553919,1.31039136,2473.6,2473.5,0.40475]
[1729991554123,2.13239136,2473.6,2473.4,1.31039136]
[1729991554329,1.45579136,2473.6,2473.5,0.40475]
[1729991558039,1.31039136,2473.6,2473.5,0.40475]
[1729991558247,1.31039136,2473.6,2473.5,4.44715]
[1729991560229,1.31039136,2473.6,2473.5,0.40475]
[1729991560535,1.31039136,2473.6,2473.5,4.44715]
[1729991562430,1.31039136,2473.6,2473.5,0.40475]
[1729991562640,1.31039136,2473.6,2473.5,4.44715]
[1729991562838,1.31039136,2473.6,2473.5,0.40475]
[1729991563039,1.31039136,2473.6,2473.5,4.44715]
[1729991563240,1.31039136,2473.6,2473.5,0.40475]
[1729991563432,1.31039136,2473.6,2473.5,4.44715]
[1729991570645,0.822,2473.9,2473.6,0.40473]
[1729991570850,1.31039136,2473.6,2473.5,1.71514136]
[1729991571143,1.31039136,2473.7,2473.6,0.40473]
[1729991571342,1.31039136,2473.7,2473.6,1.71512136]
[1729991571536,1.31039136,2473.7,2473.6,5.75752136]
[1729991571737,0.822,2473.9,2473.6,5.35279136]
[1729991571950,0.822,2473.9,2473.8,0.4047]
[1729991572137,2.13239136,2473.9,2473.8,0.4047]
[1729991573934,1.31039136,2473.9,2473.8,3.6125]
[1729991575552,1.31039136,2473.9,2473.8,0.4047]
[1729991579378,0.822,2474.0,2473.8,1.31039136]
[1729991579552,1.31039136,2474.1,2473.9,1.31039136]
[1729991579750,1.31039136,2474.1,2474.0,1.71505136]
[1729991580048,1.31039136,2474.1,2474.0,0.40466]
[1729991580551,3.2078,2474.3,2474.0,5.78689136]
[1729991580750,1.31039136,2474.5,2474.2,1.31039136]
[1729991580951,1.31039136,2474.4,2474.3,0.81201]
[1729991587561,1.31039136,2474.4,2474.3,0.40461]
[1729991593460,0.40462,2474.3,2474.1,3.61243]
[1729991593661,1.76019136,2474.2,2474.1,3.61243]
[1729991593866,2.17219136,2474.2,2474.1,3.61243]
[1729991595976,2.99719136,2474.2,2474.1,0.40465]
[1729991596776,2.99719136,2474.2,2473.8,1.4863598]
[1729991596777,4.30758272,2474.2,2473.8,1.4863598]
[1729991596978,1.31039136,2473.9,2473.8,4.0378]
[1729991598473,1.31039136,2473.9,2473.8,5.34819136]
[1729991598870,1.31039136,2474.0,2473.9,0.40467]
[1729991601482,1.31039136,2474.0,2473.9,0.40468]
[1729991607681,1.31039136,2474.1,2474.0,0.40466]
[1729991607886,1.31039136,2474.1,2474.0,0.84406]
[1729991608089,1.31039136,2474.1,2474.0,1.70886]
[1729991612591,1.31039136,2474.1,2474.0,1.26186]
[1729991616391,2.13539136,2474.2,2474.1,0.40465]
[1729991616591,2.13539136,2474.2,2474.1,0.85005]
[1729991618987,4.51819136,2474.3,2474.1,1.75579136]
[1729991619193,4.51819136,2474.3,2474.1,0.85005]
[1729991619194,0.832,2474.2,2474.1,0.85005]
[1729991619385,2.14239136,2474.2,2474.1,0.85005]
[1729991622994,1.31039136,2474.2,2474.1,2.16044136]
[1729991626603,1.31039136,2474.2,2474.1,0.85005]
[1729991628202,1.31039136,2474.2,2474.1,1.9111098]
[1729991629704,1.31039136,2474.3,2474.2,0.40463]
[1729991631705,0.832,2474.4,2474.3,0.40461]
[1729991631908,2.14239136,2474.4,2474.3,0.40461]
[1729991632099,2.14239136,2474.4,2474.3,0.82001]
[1729991632296,2.14239136,2474.4,2474.3,1.8810698]
[1729991634802,2.14239136,2474.4,2474.3,0.82001]
[1729991646908,0.40461,2474.3,2474.2,1.0610598]
[1729991647111,10.29678272,2474.3,2474.0,1.0610598]
[1729991647308,1.31039136,2474.1,2473.7,1.0610598]
[1729991647507,4.4838,2474.2,2473.6,1.4657798]
[1729991647508,1.71509136,2473.8,2473.6,1.4657798]
[1729991647840,1.2412,2473.7,2473.6,1.4657798]
[1729991648016,1.2412,2473.7,2473.6,0.40472]
[1729991648506,1.6829,2473.7,2473.6,0.40472]
[1729991649120,1.6829,2473.7,2473.5,3.20039116]
[1729991650105,2.99329136,2473.7,2473.5,3.20039116]
[1729991650314,2.99329136,2473.7,2473.5,2.13933136]
[1729991650806,2.99329136,2473.7,2473.5,1.73459136]
[1729991651007,1.31039136,2473.6,2473.4,1.0610598]
[1729991651214,1.31039136,2473.5,2473.2,2.37145116]
[1729991651413,2.13905136,2473.4,2473.2,1.31039136]
[1729991651612,0.4507,2473.3,2473.2,1.31039136]
[1729991651915,0.4507,2473.3,2473.2,1.71518136]
[1729991652714,0.4507,2473.3,2473.2,1.31039136]
[1729991653217,0.4507,2473.3,2473.2,1.71518136]
[1729991654016,1.73429136,2473.4,2473.2,1.71518136]
[1729991654618,1.31039136,2473.3,2472.9,1.4758598]
[1729991654919,1.31039136,2473.3,2473.2,0.40479]
[1729991655514,1.31039136,2473.3,2473.2,1.71518136]
[1729991657012,1.31039136,2473.4,2473.3,0.40478]
[1729991657421,0.825,2473.4,2473.3,1.71517136]
[1729991657915,0.825,2473.4,2473.3,1.31039136]
[1729991657916,2.13539136,2473.4,2473.3,1.31039136]
[1729991659116,2.13539136,2473.4,2473.2,1.71517136]
[1729991659414,1.31039136,2473.3,2473.2,0.40478]
[1729991660514,1.31039136,2473.3,2473.2,1.71517136]
[1729991661718,1.31039136,2473.3,2473.1,0.4048]
[1729991661918,1.31039136,2473.3,2473.1,1.71519136]
[1729991662118,1.31039136,2473.2,2473.1,0.4048]
[1729991662916,1.31039136,2473.2,2472.9,0.4148]
[1729991663219,1.31039136,2473.2,2473.1,1.31039136]
[1729991663422,1.31039136,2473.2,2473.1,1.71520136]
[1729991667721,2.13539136,2473.3,2473.2,0.40479]
[1729991667916,2.13539136,2473.3,2473.2,0.84669]
[1729991668117,2.13539136,2473.3,2473.2,1.25679]
[1729991669639,2.13539136,2473.3,2473.2,0.40479]
[1729991669825,2.13539136,2473.3,2473.2,1.24629]
[1729991671240,0.84,2473.5,2473.4,0.40475]
[1729991671426,2.15039136,2473.5,2473.4,0.40475]
[1729991678628,0.84,2473.6,2473.4,1.31039136]
[1729991678842,0.84,2473.6,2473.5,0.40475]
[1729991679138,2.15039136,2473.6,2473.5,0.40475]
[1729991679535,1.31039136,2473.6,2473.5,0.40475]
[1729991679733,3.2078,2473.7,2473.6,0.40473]
[1729991679734,5.35819136,2473.7,2473.6,0.40473]
[1729991679935,5.35819136,2473.7,2473.6,1.29193]
[1729991680240,5.35819136,2473.7,2473.6,1.73253]
[1729991680830,2.15039136,2473.7,2473.6,1.73253]
[1729991683536,2.15039136,2473.7,2473.5,0.40473]
[1729991683537,2.55512136,2473.7,2473.5,0.40473]
[1729991683730,1.31039136,2473.6,2473.2,3.2078]
[1729991684041,1.31039136,2473.4,2473.3,1.71517136]
[1729991685132,1.31039136,2473.6,2473.3,1.31039136]
[1729991685341,2.15039136,2473.7,2473.5,1.71514136]
[1729991685638,2.15039136,2473.7,2473.6,0.40473]
[1729991693146,3.2078,2474.1,2473.6,5.35279136]
[1729991693347,4.51819136,2474.1,2473.9,1.31039136]
[1729991693649,1.31039136,2474.0,2473.9,0.40467]
[1729991700048,1.74529136,2474.0,2473.9,0.40467]
[1729991701247,1.74529136,2474.0,2473.8,0.8377]
[1729991701544,1.71507136,2473.9,2473.7,0.85401]
[1729991701738,1.71507136,2473.9,2473.6,3.2078]
[1729991701739,1.31039136,2473.8,2473.6,3.61252]
[1729991701938,1.31039136,2473.7,2473.6,3.61252]
[1729991702143,1.74529136,2473.7,2473.6,3.61252]
[1729991702346,6.19241136,2473.7,2473.5,1.0610598]
[1729991702545,2.56349136,2473.6,2473.5,1.0610598]
[1729991704145,2.96822136,2473.6,2473.5,1.0610598]
[1729991704541,7.01062136,2473.6,2473.5,1.0610598]
[1729991706461,1.73149136,2473.6,2473.5,1.0610598]
[1729991706648,2.14239136,2473.6,2473.5,1.8925098]
[1729991706847,2.14239136,2473.6,2473.5,3.20290116]
[1729991707149,2.14239136,2473.6,2473.5,2.14184136]
[1729991707553,4.0398,2473.8,2473.7,0.40471]
[1729991707851,5.35019136,2473.8,2473.6,0.8511]
[1729991708050,1.31039136,2473.7,2473.6,1.25582]
[1729991708245,1.31039136,2473.7,2473.6,0.82212]
[1729991708450,1.31039136,2473.7,2473.6,0.40472]
[1729991708451,1.73179136,2473.7,2473.6,0.40472]
[1729991711059,2.56379136,2473.7,2473.6,0.40472]
[1729991711963,2.14239136,2473.7,2473.6,0.40472]
[1729991712259,1.31039136,2473.9,2473.6,1.31039136]
[1729991712454,2.14239136,2473.9,2473.8,1.71509136]
[1729991712662,1.31039136,2473.9,2473.8,1.71509136]
[1729991712862,2.14239136,2473.9,2473.8,2.14449136]
[1729991713162,1.31039136,2473.9,2473.8,0.8341]
[1729991733774,1.31039136,2473.9,2473.8,1.89482011]
[1729991736077,1.31039136,2473.9,2473.8,3.44531967]
[1729991736387,1.31039136,2473.9,2473.8,3.44538973]
[1729991737178,0.832,2474.0,2473.9,0.40468]
[1729991737480,2.14239136,2474.0,2473.9,0.40468]
[1729991737778,1.31039136,2474.0,2473.9,0.40468]
[1729991737984,4.0338,2474.3,2474.2,0.40463]
[1729991738278,0.826,2474.3,2474.2,3.01711903]
[1729991738481,0.4205,2474.5,2474.4,0.4046]
[1729991738683,2.13639136,2474.5,2474.4,0.4046]
[1729991739181,3.2078,2474.6,2474.5,0.40458]
[1729991739372,5.34419136,2474.6,2474.5,0.40458]
[1729991739774,5.34419136,2474.6,2474.5,0.84058]
[1729991740676,4.0338,2474.6,2474.5,2.15097136]
[1729991740981,3.2078,2474.6,2474.5,2.15097136]
[1729991741181,0.826,2474.7,2474.6,0.40457]
[1729991741486,2.13639136,2474.8,2474.7,0.40455]
[1729991742081,0.826,2474.8,2474.7,0.40455]
[1729991742380,2.13639136,2474.9,2474.8,0.40453]
[1729991742880,0.826,2474.9,2474.8,1.71492136]
[1729991743083,1.31039136,2475.1,2474.8,1.31039136]
[1729991743382,1.31039136,2475.1,2474.7,0.8749]
[1729991743383,0.826,2475.1,2475.0,0.4045]
[1729991743681,2.13639136,2475.1,2475.0,0.4045]
[1729991743983,5.34419136,2475.3,2475.2,0.40447]
[1729991744187,2.13639136,2475.3,2475.2,0.40447]
[1729991744380,2.13639136,2475.3,2475.1,2.58977136]
[1729991744580,2.13639136,2475.3,2475.2,0.40447]
[1729991749688,4.5301,2475.6,2475.2,1.31039136]
[1729991749689,2.13539136,2475.4,2475.2,1.31039136]
[1729991749988,2.13539136,2475.4,2475.3,0.82765]
[1729991750986,2.13539136,2475.4,2475.3,0.4232]
[1729991751291,1.31039136,2475.4,2475.3,0.40445]
[1729991751884,1.31039136,2475.4,2475.1,2.18529136]
[1729991752187,1.2385,2475.5,2475.1,0.8749]
[1729991752385,0.40446,2475.3,2475.0,0.40449]
[1729991752588,0.4123,2475.2,2475.0,0.40449]
[1729991752782,1.26457,2475.2,2475.0,0.40449]
[1729991753181,0.8601,2475.2,2475.0,0.40449]
[1729991753388,1.31039136,2475.1,2475.0,0.40449]
[1729991756898,1.31039136,2475.1,2475.0,1.71489136]
[1729991761889,1.31039136,2475.1,2475.0,2.13169136]
[1729991762502,1.31039136,2475.1,2475.0,0.8213]
[1729991767300,1.31039136,2475.1,2475.0,2.13169136]
[1729991769712,1.31039136,2475.1,2474.9,0.4117]
[1729991769899,8.55899136,2475.0,2474.6,3.2078]
[1729991770105,1.31039136,2474.7,2474.6,3.2078]
[1729991770308,2.54294136,2474.7,2474.5,0.84948]
[1729991770497,1.31039136,2474.6,2474.5,2.15987136]
[1729991773104,2.99399136,2474.7,2474.5,2.15987136]
[1729991773510,2.99399136,2474.7,2474.6,0.40457]
[1729991774001,0.828,2474.7,2474.6,1.71496136]
[1729991787013,0.828,2474.9,2474.8,0.40453]
[1729991787217,0.828,2474.9,2474.8,1.71492136]
[1729991787416,3.2078,2475.0,2474.9,0.40452]
[1729991787417,0.828,2475.0,2474.9,0.40452]
[1729991788915,0.828,2475.0,2474.8,1.74639136]
[1729991789215,0.828,2475.1,2475.0,0.4045]
[1729991789616,0.828,2475.1,2475.0,1.71489136]
[1729991790027,3.2078,2475.3,2475.0,1.31039136]
[1729991790217,3.2078,2475.3,2475.2,1.71486136]
[1729991790617,3.2078,2475.3,2475.2,2.13686136]
[1729991791426,2.97313136,2475.4,2475.2,2.13686136]
[1729991792025,2.54283136,2475.4,2475.2,2.13686136]
[1729991792223,0.828,2475.4,2475.3,0.40445]
[1729991792437,1.31039136,2475.4,2475.3,0.40445]
[1729991792736,0.827,2475.5,2475.3,1.31039136]
[1729991792934,0.827,2475.5,2475.4,1.31039136]
[1729991793128,0.827,2475.5,2475.4,1.71481136]
[1729991794329,4.92260136,2475.6,2475.4,1.31039136]
[1729991794534,5.34519136,2475.6,2475.5,0.40442]
[1729991794829,5.74959136,2475.6,2475.5,0.84062]
[1729991795025,5.74959136,2475.6,2475.5,0.4362]
[1729991795239,5.74959136,2475.6,2475.5,0.84062]
[1729991795634,5.34519136,2475.6,2475.5,0.84062]
[1729991796440,4.0348,2475.6,2475.5,0.84062]
[1729991796629,5.34519136,2475.6,2475.5,0.84062]
[1729991799347,5.34519136,2475.6,2475.5,1.65382]
[1729991800836,3.2078,2475.6,2475.5,2.96421136]
[1729991801042,3.2078,2475.6,2475.5,7.00341136]
[1729991801236,0.827,2475.8,2475.7,0.40439]
[1729991801438,0.827,2475.8,2475.7,1.71478136]
[1729991801639,3.61214,2476.0,2475.8,0.40436]
[1729991801640,4.51819136,2476.0,2475.8,0.40436]
[1729991801832,5.34519136,2476.0,2475.9,0.4189]
[1729991802034,5.34519136,2476.0,2475.9,0.8549]
[1729991802230,0.827,2476.0,2475.9,2.56964136]
[1729991803933,0.827,2476.2,2476.1,0.40431]
[1729991804133,0.827,2476.2,2476.1,1.71470136]
[1729991804334,0.827,2476.2,2476.1,1.31039136]
[1729991804746,5.34519136,2476.3,2476.1,1.71471136]
[1729991805842,5.34519136,2476.3,2476.2,1.71469136]
[1729991805843,4.0348,2476.3,2476.2,1.71469136]
[1729991806444,1.31039136,2476.4,2476.2,1.71469136]
[1729991806639,2.13739136,2476.4,2476.2,1.71469136]
[1729991806839,2.13739136,2476.4,2476.3,0.83219]
[1729991807045,2.13739136,2476.4,2476.3,0.4279]
[1729991807255,2.13739136,2476.4,2476.3,0.83219]
[1729991807443,1.31039136,2476.4,2476.3,0.83219]
[1729991807646,2.13739136,2476.4,2476.3,0.83219]
[1729991808846,2.13739136,2476.4,2476.3,0.4279]
[1729991809154,2.54166136,2476.4,2476.3,0.4279]
[1729991809344,2.13739136,2476.4,2476.3,0.4279]
[1729991810745,2.13739136,2476.4,2476.3,0.83219]
[1729991810942,4.51819136,2476.6,2476.3,1.73829136]
[1729991811254,0.827,2476.5,2476.4,0.82366]
[1729991811450,0.827,2476.5,2476.4,1.26206]
[1729991811945,4.92243136,2476.6,2476.4,1.26206]
[1729991812146,4.0348,2476.6,2476.4,2.57245136]
[1729991812450,4.0348,2476.6,2476.5,1.31039136]
[1729991812639,4.43904,2476.6,2476.5,1.31039136]
[1729991817853,4.0348,2476.6,2476.5,1.71465136]
[1729991818355,4.0348,2476.6,2476.5,1.31039136]
[1729991818554,4.43904,2476.6,2476.5,1.31039136]
[1729991820460,1.23124,2476.6,2476.5,1.31039136]
[1729991820761,4.43904,2476.6,2476.5,1.31039136]
[1729991820963,5.74943136,2476.6,2476.5,1.31039136]
[1729991822758,5.34519136,2476.6,2476.5,1.71465136]
[1729991822958,3.2078,2476.6,2476.5,1.71465136]
[1729991823155,0.40418,2477.0,2476.5,5.34799136]
[1729991823360,0.40421,2476.8,2476.7,1.71460136]
[1729991823559,1.31039136,2476.9,2476.6,0.4418]
[1729991823763,1.71461136,2476.7,2476.6,0.4418]
[1729991823968,1.71461136,2476.7,2476.6,4.95999136]
[1729991824268,1.71461136,2476.7,2476.6,1.75219136]
[1729991824269,0.40422,2476.7,2476.6,1.75219136]
[1729991826069,0.40422,2476.7,2476.6,2.15643136]
[1729991826261,0.40422,2476.7,2476.6,1.75219136]
[1729991827365,1.72469136,2476.8,2476.6,1.75219136]
[1729991827568,1.74059136,2476.9,2476.7,1.31039136]
[1729991827766,0.824,2477.0,2476.8,1.31039136]
[1729991827973,0.824,2477.0,2476.9,2.55508136]
[1729991828671,2.53855136,2477.1,2476.9,2.55508136]
[1729991829267,2.13439136,2477.1,2476.9,2.55508136]
[1729991829469,2.53856136,2477.1,2476.9,2.55508136]
[1729991830666,2.53856136,2477.1,2476.9,2.15089136]
[1729991830871,0.40417,2477.0,2476.9,2.15089136]
[1729991834869,0.40417,2477.0,2476.7,3.2078]
[1729991834870,0.40421,2476.8,2476.7,3.2078]
[1729991837973,2.59159136,2476.9,2476.6,4.51819136]
[1729991838172,0.40422,2476.8,2476.7,0.4334]
[1729991839677,0.40422,2476.8,2476.7,0.8677]
[1729991842576,5.34799136,2476.8,2476.3,3.6576]
[1729991842773,0.40424,2476.6,2476.5,1.31039136]
[1729991842969,1.22824,2476.6,2476.5,1.31039136]
[1729991843173,1.64274,2476.6,2476.5,1.31039136]
[1729991843569,1.2385,2476.6,2476.4,1.31039136]
[1729991843879,0.40427,2476.5,2476.4,1.31039136]
[1729991847179,0.40429,2476.3,2476.2,0.8317]
[1729991847388,1.71468136,2476.3,2476.2,0.8317]
[1729991847882,1.71468136,2476.3,2476.1,1.71470136]
[1729991847883,1.31039136,2476.3,2476.1,1.71470136]
[1729991848079,1.71468136,2476.3,2476.1,2.55490136]
[1729991849489,1.71469136,2476.2,2476.1,0.8402]
[1729991849809,0.40432,2476.1,2476.0,3.2078]
[1729991849985,2.98121136,2476.1,2476.0,3.2078]
[1729991850289,6.17279136,2476.1,2475.6,4.0822]
[1729991850481,1.71478136,2475.7,2475.6,4.0822]
[1729991850677,1.71478136,2475.7,2475.6,2.18479136]
[1729991851176,1.71478136,2475.7,2475.6,0.4302]
[1729991851378,0.40442,2475.5,2475.4,0.4302]
[1729991851579,2.53881136,2475.5,2475.4,0.4302]
[1729991852887,9.38219136,2475.5,2474.9,0.8763]
[1729991853084,1.31039136,2475.2,2475.0,2.13788136]
[1729991853500,1.71486136,2475.2,2475.0,2.13788136]
[1729991854485,1.31039136,2475.2,2475.0,2.13788136]
[1729991854678,1.71485136,2475.3,2475.1,1.71487136]
[1729991854888,1.71485136,2475.3,2475.2,1.31039136]
[1729991855186,3.2078,2475.8,2475.2,1.31039136]
[1729991855497,3.2078,2475.8,2475.5,1.31039136]
[1729991855498,1.71480136,2475.6,2475.5,1.31039136]
[1729991856088,0.825,2475.6,2475.5,1.31039136]
[1729991856292,0.825,2475.6,2475.5,2.59329136]
[1729991856492,1.71478136,2475.7,2475.5,2.59329136]
[1729991856686,1.2294,2475.6,2475.5,2.59329136]
[1729991858588,0.825,2475.6,2475.5,2.59329136]
[1729991859199,2.13539136,2475.6,2475.5,1.2829]
[1729991859500,2.53979136,2475.6,2475.5,1.2829]
[1729991863492,0.40447,2475.2,2475.1,3.2078]
[1729991863789,1.71486136,2475.2,2475.1,0.4223]
[1729991864691,1.31039136,2475.2,2475.1,0.4223]
[1729991866194,0.40447,2475.2,2475.1,0.4223]
[1729991868198,1.71485136,2475.3,2475.1,0.4223]
[1729991869498,0.40447,2475.2,2475.1,0.4223]
[1729991875003,1.71486136,2475.2,2475.1,0.4223]
[1729991883310,1.71485136,2475.3,2475.1,0.82678]
[1729991883508,1.71485136,2475.3,2475.2,0.8561]
[1729991884095,0.822,2475.3,2475.2,0.8561]
[1729991884303,0.4262,2475.7,2475.3,0.40445]
[1729991884304,0.4044,2475.7,2475.3,0.40445]
[1729991884607,2.53679136,2475.7,2475.5,1.71480136]
[1729991884803,1.2264,2475.7,2475.6,1.2679]
[1729991885514,0.822,2475.7,2475.6,1.2679]
[1729991885810,4.8612,2475.7,2475.1,3.2078]
[1729991886003,0.40443,2475.5,2475.3,0.40445]
[1729991886204,0.40445,2475.3,2475.2,1.3012]